fUST/lending_fUST_20250814
["ID","MTS","AMOUNT","RATE_DAILY","PERIOD"]
[379189462,1755180642393,-460.0,0.0001726,2]
[379189463,1755180642402,-460.0,0.0001726,2]
[379189464,1755180642412,-460.0,0.0001726,2]
[379189465,1755180642421,-543.61,0.0001726,2]
[379189467,1755180642432,-460.0,0.0001726,2]
[379189469,1755180642443,-460.0,0.0001726,2]
[379189471,1755180642452,-460.0,0.0001726,2]
[379189473,1755180642462,-516.59,0.0001726,2]
[379189475,1755180642471,-779.29,0.0001726,2]
[379189477,1755180642481,-460.0,0.0001726,2]
[379189479,1755180642490,-460.0,0.0001726,2]
[379189482,1755180642499,-460.0,0.0001726,2]
[379189484,1755180642509,-1051.17,0.0001726,2]
[379189486,1755180642518,-460.0,0.0001726,2]
[379189489,1755180642528,-460.0,0.0001726,2]
[379189491,1755180642538,-460.0,0.0001726,2]
[379189493,1755180642547,-460.0,0.0001726,2]
[379189495,1755180642558,-460.0,0.0001726,2]
[379189497,1755180642567,-339.64454977,0.0001726,2]
[379189499,1755180642576,-460.0,0.0001726,2]
[379189501,1755180642585,-460.0,0.0001726,2]
[379189502,1755180642595,-460.0,0.0001726,2]
[379189504,1755180642606,-503.7,0.0001726,2]
[379189506,1755180642615,-460.0,0.0001726,2]
[379189508,1755180642625,-245.58075808,0.0001726,2]
[379189510,1755180642636,-460.0,0.0001726,2]
[379189512,1755180642646,-282.87423958,0.0001726,2]
[379189515,1755180642658,-638.58,0.0001726,2]
[379189517,1755180642668,-460.0,0.0001726,2]
[379189519,1755180642680,-717.67,0.0001726,2]
[379189521,1755180642690,-460.0,0.0001726,2]
[379189523,1755180642700,-513.55,0.0001726,2]
[379189524,1755180642710,-460.0,0.0001726,2]
[379189526,1755180642720,-450.75,0.0001726,2]
[379189528,1755180642730,-603.15,0.0001726,2]
[379189529,1755180642740,-460.0,0.0001726,2]
[379189530,1755180642749,-257.98907941,0.0001726,2]
[379189532,1755180642759,-1015.45,0.0001726,2]
[379189534,1755180642769,-798.93,0.0001726,2]
[379189536,1755180642779,-564.31,0.0001726,2]
[379189538,1755180642788,-297.077859,0.0001726,2]
[379189540,1755180642799,-929.4,0.0001726,2]
[379189542,1755180642809,-460.0,0.0001726,2]
[379189544,1755180642818,-460.0,0.0001726,2]
[379189546,1755180642828,-543.74,0.0001726,2]
[379189548,1755180642838,-752.47,0.0001726,2]
[379189550,1755180642847,-460.0,0.0001726,2]
[379189552,1755180642857,-151.0,0.0001726,2]
[379189554,1755180642867,-460.0,0.0001726,2]
[379189556,1755180642878,-404.78885794,0.0001726,2]
[379189558,1755180642887,-460.0,0.0001726,2]
[379189560,1755180642897,-1174.85,0.0001726,2]
[379189562,1755180642907,-472.42620289,0.0001726,2]
[379189564,1755180642916,-805.76,0.0001726,2]
[379189566,1755180642927,-457.1111604,0.0001726,2]
[379189569,1755180642940,-2.8888396,0.0001726,2]
[379189571,1755180642950,-666.69,0.0001726,2]
[379189573,1755180642960,-912.44,0.0001726,2]
[379189575,1755180642970,-1721.1412322,0.0001726,2]
[379189595,1755180643163,-21.7287678,0.0001726,2]
[379189597,1755180643174,-460.0,0.0001726,2]
[379189599,1755180643186,-1010.08,0.0001726,2]
[379189601,1755180643197,-609.89,0.0001726,2]
[379189603,1755180643208,-947.27,0.0001726,2]
[379189606,1755180643218,-460.0,0.0001726,2]
[379189608,1755180643229,-641.95,0.0001726,2]
[379189611,1755180643239,-460.0,0.0001726,2]
[379189616,1755180643249,-148.8517974,0.0001726,2]
[379189620,1755180643262,-311.1482026,0.0001726,2]
[379189623,1755180643271,-82.17693696,0.0001726,2]
[379190084,1755180648206,-1419.94,0.00016438,2]
[379190085,1755180648216,-1419.94,0.00016712,2]
[379190086,1755180648226,-377.82306304,0.0001726,2]
[379190087,1755180648236,-833.52,0.0001726,2]
[379190088,1755180648245,-460.0,0.0001726,2]
[379190089,1755180648255,-460.0,0.0001726,2]
[379190090,1755180648264,-286.62739854,0.0001726,2]
[379190091,1755180648274,-571.62,0.0001726,2]
[379190092,1755180648283,-2472.02,0.0001726,2]
[379190093,1755180648292,-583.29,0.0001726,2]
[379190094,1755180648303,-460.0,0.0001726,2]
[379190095,1755180648312,-510.56,0.0001726,2]
[379190096,1755180648322,-460.0,0.0001726,2]
[379190097,1755180648332,-970.14,0.0001726,2]
[379190098,1755180648341,-696.95,0.0001726,2]
[379190099,1755180648351,-675.55,0.0001726,2]
[379190100,1755180648361,-1484.3,0.0001726,2]
[379190101,1755180648374,-2567.01,0.0001726,2]
[379190102,1755180648383,-460.0,0.0001726,2]
[379190103,1755180648392,-576.59,0.0001726,2]
[379190104,1755180648402,-464.79,0.0001726,2]
[379190105,1755180648412,-975.2,0.0001726,2]
[379190106,1755180648422,-460.0,0.0001726,2]
[379190107,1755180648432,-460.0,0.0001726,2]
[379190108,1755180648442,-788.46,0.0001726,2]
[379190109,1755180648452,-460.0,0.0001726,2]
[379190110,1755180648462,-460.0,0.0001726,2]
[379190111,1755180648471,-460.0,0.0001726,2]
[379190112,1755180648480,-460.0,0.0001726,2]
[379190113,1755180648490,-460.0,0.0001726,2]
[379190114,1755180648499,-528.61,0.0001726,2]
[379190115,1755180648509,-460.0,0.0001726,2]
[379190116,1755180648518,-460.0,0.0001726,2]
[379190117,1755180648527,-563.74,0.0001726,2]
[379190118,1755180648537,-7806.81,0.0001726,2]
[379190119,1755180648547,-460.0,0.0001726,2]
[379190120,1755180648556,-862.26,0.0001726,2]
[379190121,1755180648566,-1740.26,0.0001726,2]
[379190122,1755180648575,-460.0,0.0001726,2]
[379190123,1755180648584,-480.87,0.0001726,2]
[379190124,1755180648594,-460.0,0.0001726,2]
[379190125,1755180648604,-460.0,0.0001726,2]
[379190126,1755180648614,-1877.55,0.0001726,2]
[379190127,1755180648623,-460.0,0.0001726,2]
[379190128,1755180648636,-4614.94,0.0001726,2]
[379190129,1755180648645,-1332.3,0.0001726,2]
[379190130,1755180648654,-531.92,0.0001726,2]
[379190131,1755180648664,-582.87,0.0001726,2]
[379190132,1755180648674,-460.0,0.0001726,2]
[379190133,1755180648685,-460.0,0.0001726,2]
[379190134,1755180648695,-1668.91,0.0001726,2]
[379190135,1755180648704,-460.0,0.0001726,2]
[379190136,1755180648715,-2618.86,0.0001726,2]
[379190137,1755180648725,-460.0,0.0001726,2]
[379190138,1755180648734,-888.0,0.0001726,2]
[379190139,1755180648743,-595.48,0.0001726,2]
[379190140,1755180648753,-1212.14,0.0001726,2]
[379190141,1755180648763,-460.0,0.0001726,2]
[379190142,1755180648773,-553.71,0.0001726,2]
[379190143,1755180648783,-460.0,0.0001726,2]
[379190144,1755180648792,-1770.61,0.0001726,2]
[379190145,1755180648802,-460.0,0.0001726,2]
[379190146,1755180648811,-5096.05,0.0001726,2]
[379190147,1755180648821,-528.82,0.0001726,2]
[379190148,1755180648830,-499.23,0.0001726,2]
[379190149,1755180648839,-833.64,0.0001726,2]
[379190150,1755180648849,-460.0,0.0001726,2]
[379190151,1755180648858,-1023.43,0.0001726,2]
[379190152,1755180648867,-460.0,0.0001726,2]
[379190153,1755180648877,-450.543697,0.0001726,2]
[379190154,1755180648886,-450.543697,0.0001726,2]
[379190155,1755180648896,-151.0,0.000173,2]
[379190156,1755180648905,-506.76482346,0.00017321,2]
[379190157,1755180648914,-435.17563623,0.00017321,2]
[379190158,1755180648924,-242.97626793,0.00017321,2]
[379190159,1755180648936,-1000.0,0.00017321,2]
[379190160,1755180648945,-500.0,0.00017321,2]
[379190161,1755180648954,-1000.0,0.00017321,2]
[379190162,1755180648964,-2426.87259197,0.00017363,2]
[379190163,1755180648974,-300.0,0.00017371,2]
[379190164,1755180648984,-420.0,0.00017371,2]
[379190165,1755180648993,-159.0,0.00017371,2]
[379190166,1755180649004,-332.0,0.00017371,2]
[379190167,1755180649014,-159.73,0.00017396,2]
[379190168,1755180649023,-545.726,0.000174,2]
[379190169,1755180649033,-179.13042368,0.000174,2]
[379190170,1755180649042,-151.0,0.000174,2]
[379190171,1755180649052,-2151.0,0.00017406,2]
[379190172,1755180649061,-636.0,0.00017406,2]
[379190173,1755180649071,-972.0,0.00017406,2]
[379190174,1755180649080,-408.0,0.00017407,2]
[379190175,1755180649090,-418.941,0.00017407,2]
[379190176,1755180649099,-1680.0,0.00017457,2]
[379190177,1755180649109,-151.0,0.00017463,2]
[379190178,1755180649119,-168.0,0.00017489,2]
[379190179,1755180649129,-1900.0,0.0001752,2]
[379190180,1755180649139,-465.36456541,0.00017521,2]
[379190181,1755180649149,-1000.0,0.00017521,2]
[379190182,1755180649159,-151.0,0.00017521,2]
[379190183,1755180649169,-311.1,0.00017529,2]
[379190184,1755180649179,-151.0,0.00017534,2]
[379190185,1755180649191,-385.039055,0.00017534,2]
[379190186,1755180649202,-385.039055,0.00017534,2]
[379190187,1755180649212,-460.0,0.00017534,2]
[379190188,1755180649221,-168.821481,0.00017534,2]
[379190189,1755180649231,-676.15,0.00017534,2]
[379190190,1755180649241,-151.0,0.00017534,2]
[379190191,1755180649251,-460.0,0.00017534,2]
[379190192,1755180649260,-460.0,0.00017534,2]
[379190193,1755180649270,-470.06,0.00017534,2]
[379190194,1755180649280,-460.0,0.00017534,2]
[379190195,1755180649289,-460.0,0.00017534,2]
[379190196,1755180649299,-460.0,0.00017534,2]
[379190197,1755180649309,-460.0,0.00017534,2]
[379190198,1755180649319,-460.0,0.00017534,2]
[379190199,1755180649337,-460.0,0.00017534,2]
[379190200,1755180649353,-477.74,0.00017534,2]
[379190201,1755180649363,-460.0,0.00017534,2]
[379190202,1755180649373,-460.0,0.00017534,2]
[379190203,1755180649383,-460.0,0.00017534,2]
[379190204,1755180649393,-543.61,0.00017534,2]
[379190205,1755180649403,-460.0,0.00017534,2]
[379190206,1755180649412,-460.0,0.00017534,2]
[379190207,1755180649426,-516.59,0.00017534,2]
[379190208,1755180649449,-779.29,0.00017534,2]
[379190209,1755180649465,-460.0,0.00017534,2]
[379190210,1755180649475,-460.0,0.00017534,2]
[379190211,1755180649485,-460.0,0.00017534,2]
[379190212,1755180649494,-1051.17,0.00017534,2]
[379190213,1755180649503,-151.0,0.00017534,2]
[379190214,1755180649514,-351.823424,0.00017534,2]
[379190215,1755180649523,-351.823424,0.00017534,2]
[379190216,1755180649532,-460.0,0.00017534,2]
[379190217,1755180649541,-460.0,0.00017534,2]
[379190218,1755180649551,-460.0,0.00017534,2]
[379190219,1755180649561,-460.0,0.00017534,2]
[379190220,1755180649570,-460.0,0.00017534,2]
[379190221,1755180649580,-460.0,0.00017534,2]
[379190222,1755180649594,-460.0,0.00017534,2]
[379190223,1755180649603,-460.0,0.00017534,2]
[379190224,1755180649613,-503.7,0.00017534,2]
[379190225,1755180649629,-460.0,0.00017534,2]
[379190226,1755180649643,-460.0,0.00017534,2]
[379190227,1755180649652,-638.58,0.00017534,2]
[379190228,1755180649662,-460.0,0.00017534,2]
[379190229,1755180649672,-717.67,0.00017534,2]
[379190230,1755180649681,-460.0,0.00017534,2]
[379190231,1755180649691,-513.55,0.00017534,2]
[379190232,1755180649700,-462.79291,0.00017534,2]
[379190233,1755180649711,-603.15,0.00017534,2]
[379190234,1755180649720,-460.0,0.00017534,2]
[379190235,1755180649729,-798.93,0.00017534,2]
[379190236,1755180649739,-1015.45,0.00017534,2]
[379190237,1755180649748,-564.31,0.00017534,2]
[379190238,1755180649758,-929.4,0.00017534,2]
[379190239,1755180649767,-460.0,0.00017534,2]
[379190240,1755180649776,-460.0,0.00017534,2]
[379190241,1755180649785,-543.74,0.00017534,2]
[379190242,1755180649795,-752.47,0.00017534,2]
[379190243,1755180649804,-220.68256553,0.00017534,2]
[379190244,1755180649814,-805.76,0.00017534,2]
[379190245,1755180649823,-460.0,0.00017534,2]
[379190246,1755180649833,-666.69,0.00017534,2]
[379190247,1755180649842,-912.44,0.00017534,2]
[379190248,1755180649852,-1742.87,0.00017534,2]
[379190249,1755180649861,-460.0,0.00017534,2]
[379190250,1755180649870,-1010.08,0.00017534,2]
[379190251,1755180649880,-609.89,0.00017534,2]
[379190252,1755180649890,-947.27,0.00017534,2]
[379190253,1755180649899,-460.0,0.00017534,2]
[379190254,1755180649908,-641.95,0.00017534,2]
[379190255,1755180649917,-460.0,0.00017534,2]
[379190256,1755180649927,-460.0,0.00017534,2]
[379190257,1755180649937,-833.52,0.00017534,2]
[379190258,1755180649947,-460.0,0.00017534,2]
[379190259,1755180649956,-460.0,0.00017534,2]
[379190260,1755180649966,-571.62,0.00017534,2]
[379190261,1755180649975,-2472.02,0.00017534,2]
[379190262,1755180649984,-460.0,0.00017534,2]
[379190263,1755180649994,-583.29,0.00017534,2]
[379190264,1755180650003,-510.56,0.00017534,2]
[379190265,1755180650012,-460.0,0.00017534,2]
[379190266,1755180650022,-970.14,0.00017534,2]
[379190267,1755180650031,-696.95,0.00017534,2]
[379190268,1755180650040,-1484.3,0.00017534,2]
[379190269,1755180650049,-675.55,0.00017534,2]
[379190270,1755180650059,-2567.01,0.00017534,2]
[379190271,1755180650068,-460.0,0.00017534,2]
[379190272,1755180650077,-576.59,0.00017534,2]
[379190273,1755180650087,-464.79,0.00017534,2]
[379190274,1755180650096,-975.2,0.00017534,2]
[379190275,1755180650105,-460.0,0.00017534,2]
[379190276,1755180650114,-460.0,0.00017534,2]
[379190277,1755180650123,-788.46,0.00017534,2]
[379190278,1755180650132,-460.0,0.00017534,2]
[379190279,1755180650142,-460.0,0.00017534,2]
[379190280,1755180650151,-460.0,0.00017534,2]
[379190281,1755180650160,-460.0,0.00017534,2]
[379190282,1755180650170,-460.0,0.00017534,2]
[379190283,1755180650179,-528.61,0.00017534,2]
[379190284,1755180650190,-460.0,0.00017534,2]
[379190285,1755180650198,-460.0,0.00017534,2]
[379190286,1755180650208,-563.74,0.00017534,2]
[379190287,1755180650216,-7806.81,0.00017534,2]
[379190288,1755180650225,-460.0,0.00017534,2]
[379190289,1755180650235,-862.26,0.00017534,2]
[379190290,1755180650244,-1740.26,0.00017534,2]
[379190291,1755180650253,-460.0,0.00017534,2]
[379190292,1755180650263,-480.87,0.00017534,2]
[379190293,1755180650272,-460.0,0.00017534,2]
[379190294,1755180650281,-460.0,0.00017534,2]
[379190295,1755180650291,-1877.55,0.00017534,2]
[379190296,1755180650300,-460.0,0.00017534,2]
[379190297,1755180650309,-1332.3,0.00017534,2]
[379190298,1755180650319,-4614.94,0.00017534,2]
[379190299,1755180650328,-531.92,0.00017534,2]
[379190300,1755180650338,-582.87,0.00017534,2]
[379190301,1755180650347,-460.0,0.00017534,2]
[379190302,1755180650356,-460.0,0.00017534,2]
[379190303,1755180650365,-1668.91,0.00017534,2]
[379190304,1755180650375,-460.0,0.00017534,2]
[379190305,1755180650384,-2618.86,0.00017534,2]
[379190306,1755180650393,-460.0,0.00017534,2]
[379190307,1755180650403,-888.0,0.00017534,2]
[379190308,1755180650412,-595.48,0.00017534,2]
[379190309,1755180650422,-1212.14,0.00017534,2]
[379190310,1755180650431,-460.0,0.00017534,2]
[379190311,1755180650443,-553.71,0.00017534,2]
[379190312,1755180650452,-460.0,0.00017534,2]
[379190313,1755180650461,-1770.61,0.00017534,2]
[379190314,1755180650470,-460.0,0.00017534,2]
[379190315,1755180650479,-5096.05,0.00017534,2]
[379190316,1755180650488,-528.82,0.00017534,2]
[379190317,1755180650498,-499.23,0.00017534,2]
[379190318,1755180650507,-833.64,0.00017534,2]
[379190319,1755180650516,-460.0,0.00017534,2]
[379190320,1755180650525,-1023.43,0.00017534,2]
[379190321,1755180650536,-460.0,0.00017534,2]
[379190322,1755180650546,-450.543697,0.00017534,2]
[379190323,1755180650555,-450.543697,0.00017534,2]
[379190324,1755180650564,-1500.0,0.00017568,2]
[379190325,1755180650713,-151.0,0.000176,2]
[379190326,1755180650723,-500.0,0.000177,2]
[379190327,1755180650732,-584.88,0.00017798,3]
[379190328,1755180650742,-151.0,0.000178,2]
[379190329,1755180650752,-200.0,0.00017804,2]
[379190330,1755180650762,-200.0,0.00017804,2]
[379190331,1755180650772,-200.0,0.00017804,2]
[379190332,1755180650782,-200.0,0.00017804,2]
[379190333,1755180650791,-200.0,0.00017804,2]
[379190334,1755180650800,-200.0,0.00017804,2]
[379190335,1755180650809,-200.0,0.00017804,2]
[379190336,1755180650818,-280.0,0.00017804,2]
[379190337,1755180650828,-822.17102529,0.00017805,2]
[379190338,1755180650837,-3288.68410114,0.00017805,2]
[379190339,1755180650847,-1159.47072342,0.00017805,2]
[379190340,1755180650856,-151.0,0.00017808,2]
[379190341,1755180650866,-385.039055,0.00017808,2]
[379190342,1755180650875,-385.039055,0.00017808,2]
[379190343,1755180650885,-460.0,0.00017808,2]
[379190344,1755180650895,-676.15,0.00017808,2]
[379190345,1755180650904,-460.0,0.00017808,2]
[379190346,1755180650914,-460.0,0.00017808,2]
[379190347,1755180650923,-470.06,0.00017808,2]
[379190348,1755180650932,-460.0,0.00017808,2]
[379190349,1755180650948,-460.0,0.00017808,2]
[379190350,1755180650957,-460.0,0.00017808,2]
[379190351,1755180650967,-460.0,0.00017808,2]
[379190352,1755180650977,-460.0,0.00017808,2]
[379190353,1755180650987,-477.74,0.00017808,2]
[379190354,1755180650996,-460.0,0.00017808,2]
[379190355,1755180651005,-460.0,0.00017808,2]
[379190356,1755180651015,-460.0,0.00017808,2]
[379190357,1755180651025,-543.61,0.00017808,2]
[379190358,1755180651035,-460.0,0.00017808,2]
[379190359,1755180651045,-460.0,0.00017808,2]
[379190360,1755180651055,-516.59,0.00017808,2]
[379190361,1755180651064,-779.29,0.00017808,2]
[379190362,1755180651074,-460.0,0.00017808,2]
[379190363,1755180651083,-460.0,0.00017808,2]
[379190364,1755180651093,-460.0,0.00017808,2]
[379190365,1755180651102,-1051.17,0.00017808,2]
[379190366,1755180651112,-460.0,0.00017808,2]
[379190367,1755180651122,-460.0,0.00017808,2]
[379190368,1755180651131,-460.0,0.00017808,2]
[379190369,1755180651140,-460.0,0.00017808,2]
[379190370,1755180651149,-460.0,0.00017808,2]
[379190371,1755180651158,-460.0,0.00017808,2]
[379190372,1755180651168,-460.0,0.00017808,2]
[379190373,1755180651177,-460.0,0.00017808,2]
[379190374,1755180651191,-503.7,0.00017808,2]
[379190375,1755180651200,-460.0,0.00017808,2]
[379190376,1755180651210,-460.0,0.00017808,2]
[379190377,1755180651220,-638.58,0.00017808,2]
[379190378,1755180651229,-460.0,0.00017808,2]
[379190379,1755180651239,-717.67,0.00017808,2]
[379190380,1755180651249,-460.0,0.00017808,2]
[379190381,1755180651258,-513.55,0.00017808,2]
[379190382,1755180651268,-603.15,0.00017808,2]
[379190383,1755180651278,-460.0,0.00017808,2]
[379190384,1755180651287,-798.93,0.00017808,2]
[379190385,1755180651297,-1015.45,0.00017808,2]
[379190386,1755180651306,-564.31,0.00017808,2]
[379190387,1755180651315,-929.4,0.00017808,2]
[379190388,1755180651324,-460.0,0.00017808,2]
[379190389,1755180651334,-529.45951943,0.00017808,2]
[379190390,1755180651344,-543.74,0.00017808,2]
[379190391,1755180651355,-752.47,0.00017808,2]
[379190392,1755180651364,-805.76,0.00017808,2]
[379190393,1755180651374,-460.0,0.00017808,2]
[379190394,1755180651383,-666.69,0.00017808,2]
[379190395,1755180651393,-912.44,0.00017808,2]
[379190396,1755180651402,-1742.87,0.00017808,2]
[379190397,1755180651412,-460.0,0.00017808,2]
[379190398,1755180651422,-1010.08,0.00017808,2]
[379190399,1755180651431,-609.89,0.00017808,2]
[379190400,1755180651445,-947.27,0.00017808,2]
[379190401,1755180651455,-460.0,0.00017808,2]
[379190402,1755180651464,-641.95,0.00017808,2]
[379190403,1755180651474,-460.0,0.00017808,2]
[379190404,1755180651483,-460.0,0.00017808,2]
[379190405,1755180651492,-833.52,0.00017808,2]
[379190406,1755180651502,-460.0,0.00017808,2]
[379190407,1755180651511,-460.0,0.00017808,2]
[379190408,1755180651520,-571.62,0.00017808,2]
[379190409,1755180651530,-2472.02,0.00017808,2]
[379190410,1755180651539,-460.0,0.00017808,2]
[379190411,1755180651549,-583.29,0.00017808,2]
[379190412,1755180651558,-510.56,0.00017808,2]
[379190413,1755180651567,-460.0,0.00017808,2]
[379190414,1755180651577,-970.14,0.00017808,2]
[379190415,1755180651587,-696.95,0.00017808,2]
[379190416,1755180651596,-1484.3,0.00017808,2]
[379190417,1755180651606,-675.55,0.00017808,2]
[379190418,1755180651615,-2567.01,0.00017808,2]
[379190419,1755180651626,-460.0,0.00017808,2]
[379190420,1755180651637,-576.59,0.00017808,2]
[379190421,1755180651647,-464.79,0.00017808,2]
[379190422,1755180651657,-975.2,0.00017808,2]
[379190423,1755180651666,-460.0,0.00017808,2]
[379190424,1755180651677,-460.0,0.00017808,2]
[379190425,1755180651692,-788.46,0.00017808,2]
[379190426,1755180651701,-460.0,0.00017808,2]
[379190427,1755180651711,-460.0,0.00017808,2]
[379190428,1755180651731,-460.0,0.00017808,2]
[379190429,1755180651741,-460.0,0.00017808,2]
[379190430,1755180651755,-460.0,0.00017808,2]
[379190431,1755180651764,-528.61,0.00017808,2]
[379190432,1755180651773,-460.0,0.00017808,2]
[379190433,1755180651783,-460.0,0.00017808,2]
[379190434,1755180651793,-563.74,0.00017808,2]
[379190435,1755180651802,-7806.81,0.00017808,2]
[379190436,1755180651811,-460.0,0.00017808,2]
[379190437,1755180651820,-862.26,0.00017808,2]
[379190438,1755180651830,-460.0,0.00017808,2]
[379190439,1755180651840,-480.87,0.00017808,2]
[379190440,1755180651849,-460.0,0.00017808,2]
[379190441,1755180651858,-460.0,0.00017808,2]
[379190442,1755180651867,-1740.26,0.00017808,2]
[379190443,1755180651876,-1877.55,0.00017808,2]
[379190444,1755180651885,-460.0,0.00017808,2]
[379190445,1755180651894,-1332.3,0.00017808,2]
[379190446,1755180651904,-4614.94,0.00017808,2]
[379190447,1755180651913,-531.92,0.00017808,2]
[379190448,1755180651922,-582.87,0.00017808,2]
[379190449,1755180651931,-460.0,0.00017808,2]
[379190450,1755180651944,-460.0,0.00017808,2]
[379190451,1755180651954,-1668.91,0.00017808,2]
[379190452,1755180651963,-460.0,0.00017808,2]
[379190453,1755180651973,-2618.86,0.00017808,2]
[379190454,1755180651983,-460.0,0.00017808,2]
[379190455,1755180651992,-888.0,0.00017808,2]
[379190456,1755180652002,-595.48,0.00017808,2]
[379190457,1755180652011,-1212.14,0.00017808,2]
[379190458,1755180652020,-460.0,0.00017808,2]
[379190459,1755180652030,-553.71,0.00017808,2]
[379190460,1755180652039,-460.0,0.00017808,2]
[379190461,1755180652048,-1770.61,0.00017808,2]
[379190462,1755180652057,-460.0,0.00017808,2]
[379190463,1755180652067,-5096.05,0.00017808,2]
[379190464,1755180652076,-528.82,0.00017808,2]
[379190465,1755180652085,-499.23,0.00017808,2]
[379190466,1755180652094,-833.64,0.00017808,2]
[379190467,1755180652104,-460.0,0.00017808,2]
[379190468,1755180652114,-1023.43,0.00017808,2]
[379190469,1755180652123,-460.0,0.00017808,2]
[379190470,1755180652133,-151.0,0.00017815,2]
[379190471,1755180652143,-151.0,0.00017815,2]
[379190472,1755180652153,-1500.0,0.00017868,2]
[379190473,1755180652162,-151.0,0.000179,2]
[379190474,1755180652172,-311.1,0.00017928,2]
[379190475,1755180652182,-3118.88668739,0.00017972,2]
[379190476,1755180652195,-160.0,0.00018003,2]
[379190477,1755180652205,-4633.24501079,0.00018024,2]
[379190478,1755180652215,-7392.13968834,0.00018031,2]
[379190479,1755180652224,-151.0,0.00018062,2]
[379190480,1755180652234,-351.823424,0.00018062,2]
[379190482,1755180652244,-351.823424,0.00018062,2]
[379190484,1755180652253,-151.0,0.00018068,2]
[379190486,1755180652263,-1500.0,0.00018068,2]
[379190488,1755180652278,-216.29450313,0.00018071,2]
[379190491,1755180652293,-151.0,0.00018082,2]
[379190493,1755180652307,-385.039055,0.00018082,2]
[379190495,1755180652320,-385.039055,0.00018082,2]
[379190498,1755180652330,-460.0,0.00018082,2]
[379190499,1755180652344,-676.15,0.00018082,2]
[379190501,1755180652356,-158.560395,0.00018082,2]
[379190503,1755180652369,-502.93255083,0.00018082,2]
[379190506,1755180652382,-460.0,0.00018082,2]
[379190508,1755180652396,-470.06,0.00018082,2]
[379190510,1755180652408,-460.0,0.00018082,2]
[379190513,1755180652421,-460.0,0.00018082,2]
[379190515,1755180652437,-460.0,0.00018082,2]
[379190517,1755180652450,-460.0,0.00018082,2]
[379190519,1755180652462,-460.0,0.00018082,2]
[379190522,1755180652474,-477.74,0.00018082,2]
[379190524,1755180652486,-460.0,0.00018082,2]
[379190526,1755180652498,-460.0,0.00018082,2]
[379190528,1755180652511,-460.0,0.00018082,2]
[379190531,1755180652524,-543.61,0.00018082,2]
[379190533,1755180652539,-460.0,0.00018082,2]
[379190535,1755180652549,-460.0,0.00018082,2]
[379190537,1755180652562,-516.59,0.00018082,2]
[379190539,1755180652573,-779.29,0.00018082,2]
[379190541,1755180652586,-460.0,0.00018082,2]
[379190543,1755180652598,-460.0,0.00018082,2]
[379190545,1755180652611,-460.0,0.00018082,2]
[379190548,1755180652623,-1051.17,0.00018082,2]
[379190550,1755180652640,-460.0,0.00018082,2]
[379190552,1755180652652,-460.0,0.00018082,2]